bitfinex/quotes_ETHUSD_20250722
["timestamp","ask_amount","ask_price","bid_price","bid_amount"]
[1753171109768,2.86161258,3668.9,3668.8,4.73164709]
[1753171110394,0.136,3668.9,3668.8,4.73164709]
[1753171110794,2.86161258,3668.9,3668.8,4.73164709]
[1753171111093,2.86161258,3668.9,3668.8,0.25364709]
[1753171112211,0.136,3668.9,3668.8,0.25364709]
[1753171114197,2.72574525,3668.8,3668.7,4.472]
[1753171114527,17.22574525,3668.8,3668.7,4.472]
[1753171115129,14.5,3668.8,3668.7,4.472]
[1753171115826,14.5,3668.8,3668.7,4.9273]
[1753171116526,0.136,3668.9,3668.8,3.49988687]
[1753171116712,0.136,3669.3,3668.8,1.2284]
[1753171116920,0.136,3669.3,3669.0,2.72552259]
[1753171117228,0.136,3669.3,3669.1,7.19041533]
[1753171117619,0.136,3669.3,3669.2,3.17958973]
[1753171117818,2.72469399,3670.2,3669.5,2.72512094]
[1753171118004,0.136,3670.0,3669.8,2.72487281]
[1753171118205,0.136,3670.0,3669.9,4.462]
[1753171118405,0.136,3670.0,3669.9,4.9162]
[1753171118608,0.136,3670.0,3669.9,7.64106988]
[1753171118810,14.636,3670.3,3670.1,2.72470435]
[1753171119007,0.136,3670.3,3670.2,8.45074715]
[1753171119804,0.136,3670.7,3670.4,2.72445651]
[1753171120000,0.136,3670.7,3670.5,4.459]
[1753171120201,14.5,3671.2,3670.5,4.9132]
[1753171120400,0.136,3670.9,3670.5,4.9132]
[1753171120605,0.136,3670.9,3670.6,0.85016329]
[1753171120806,0.136,3670.9,3670.6,3.57449845]
[1753171121043,0.136,3670.9,3670.7,0.4542]
[1753171121205,0.136,3670.9,3670.8,4.457]
[1753171121404,0.136,3670.9,3670.8,4.9112]
[1753171121644,0.136,3670.9,3670.8,4.457]
[1753171121953,0.136,3670.9,3670.2,0.8109]
[1753171122121,2.72441852,3670.6,3670.3,4.454]
[1753171122303,2.8604302,3670.5,3670.3,4.454]
[1753171122650,2.86042446,3670.5,3670.4,4.452]
[1753171123142,0.136,3670.5,3670.3,4.449]
[1753171123351,2.72449869,3670.4,3670.3,4.449]
[1753171123653,2.72445021,3670.5,3670.3,4.449]
[1753171123849,0.8046,3671.0,3670.3,4.449]
[1753171124039,0.136,3670.4,3670.3,4.9032]
[1753171125113,0.136,3670.4,3670.3,5.7066]
[1753171125321,0.136,3670.6,3670.3,6.27998472]
[1753171125514,0.136,3670.6,3670.4,0.4542]
[1753171125722,0.136,3670.6,3670.5,0.4542]
[1753171126113,2.86013367,3670.9,3670.5,0.4542]
[1753171126314,2.86013367,3670.9,3670.6,4.445]
[1753171126534,0.136,3670.9,3670.7,0.7648]
[1753171126733,0.7744,3672.1,3670.7,1.219]
[1753171126734,0.4358,3671.9,3670.7,1.219]
[1753171126946,0.136,3671.0,3670.8,4.444]
[1753171127349,0.136,3671.0,3670.9,0.4542]
[1753171127547,0.136,3671.0,3670.9,1.0205]
[1753171127850,0.7744,3672.1,3670.9,1.0205]
[1753171128162,2.72388943,3671.3,3671.0,4.441]
[1753171128457,0.136,3671.4,3671.1,0.4542]
[1753171128755,2.72383079,3671.3,3671.0,4.441]
[1753171128931,0.136,3671.4,3671.0,4.441]
[1753171129256,2.7239593,3671.2,3671.0,4.441]
[1753171129552,2.72397918,3671.1,3671.0,4.441]
[1753171129959,0.136,3671.4,3671.0,4.8952]
[1753171130126,2.72397918,3671.1,3671.0,4.8952]
[1753171130326,2.8598184,3671.4,3671.0,4.8952]
[1753171130327,2.72393338,3671.2,3671.0,4.8952]
[1753171130631,2.7242018,3670.8,3670.7,0.9008]
[1753171130830,2.7242018,3670.8,3670.7,4.435]
[1753171131058,2.72442446,3670.5,3670.4,0.8298]
[1753171131374,2.86036173,3670.6,3670.4,5.2648]
[1753171131551,2.8603532,3670.6,3670.4,5.719]
[1753171131885,0.136,3670.6,3670.5,0.4542]
[1753171132028,2.72408605,3671.0,3670.5,0.4542]
[1753171132230,14.636,3671.0,3670.6,0.4542]
[1753171132526,17.36007046,3671.0,3670.7,4.8892]
[1753171132742,2.86007046,3671.0,3670.8,4.8892]
[1753171132962,0.136,3671.0,3670.8,4.435]
[1753171133163,0.136,3671.0,3670.9,0.4542]
[1753171133959,0.136,3671.3,3670.9,0.4542]
[1753171134274,0.136,3671.3,3670.8,4.435]
[1753171134434,0.136,3671.3,3670.9,0.4542]
[1753171134633,0.136,3671.3,3671.0,0.4542]
[1753171134834,0.136,3671.3,3671.1,4.8882]
[1753171135273,0.136,3671.3,3671.1,5.1924]
[1753171135461,0.136,3671.3,3671.2,0.4542]
[1753171135462,2.8598488,3671.3,3671.2,0.4542]
[1753171135878,2.72390499,3671.2,3671.1,5.1924]
[1753171136079,0.136,3671.3,3671.1,5.6466]
[1753171136258,0.136,3671.3,3671.1,5.1924]
[1753171136457,0.136,3671.3,3671.2,0.4542]
[1753171138185,0.136,3671.3,3671.2,3.17810499]
[1753171138388,0.136,3671.3,3671.2,1.59089372]
[1753171138592,0.002,3671.4,3671.2,1.56365468]
[1753171138762,0.002,3671.4,3671.2,1.10945468]
[1753171138962,0.002,3671.4,3671.3,0.4542]
[1753171140394,0.002,3671.4,3671.3,5.6383]
[1753171140561,0.002,3671.4,3671.3,8.36213079]
[1753171140766,0.002,3671.4,3671.3,9.48434254]
[1753171141298,0.002,3671.4,3671.3,9.62034254]
[1753171142662,0.002,3671.4,3671.3,10.17034254]
[1753171143970,0.002,3671.4,3671.3,20.90645854]
[1753171144172,2.72458866,3673.0,3672.1,3.53613738]
[1753171144366,0.136,3672.7,3672.1,8.75831573]
[1753171144676,0.136,3672.7,3672.1,9.18528336]
[1753171144878,0.002,3672.8,3672.1,9.73528336]
[1753171145083,0.002,3672.8,3672.1,20.36699666]
[1753171145309,0.002,3672.8,3672.1,42.97964166]
[1753171145310,1e-08,3672.2,3672.1,42.97964166]
[1753171145607,0.002,3672.8,3672.7,4.05349249]
[1753171145913,0.002,3672.8,3672.7,12.19035782]
[1753171146079,0.002,3672.8,3672.7,12.7533299]
[1753171146279,0.002,3673.7,3673.1,3.27249598]
[1753171146490,1e-08,3673.2,3673.1,35.21333023]
[1753171146803,0.002,3673.7,3673.6,4.08782543]
[1753171146967,0.002,3673.7,3673.6,8.92860797]
[1753171147166,0.002,3673.7,3673.6,9.35660797]
[1753171147420,0.002,3673.7,3673.6,9.49260797]
[1753171147703,0.002,3673.7,3673.6,17.12432127]
[1753171148018,0.002,3673.7,3673.6,20.12432127]
[1753171148373,0.002,3673.7,3673.6,45.77637827]
[1753171148568,0.002,3674.6,3673.8,3.27197724]
[1753171148804,0.002,3674.6,3673.8,14.20948877]
[1753171148975,0.002,3674.6,3673.8,14.610269]
[1753171149179,0.002,3674.6,3673.8,14.746269]
[1753171150286,0.002,3674.6,3673.8,7.315269]
[1753171150606,0.002,3674.6,3673.8,9.04717724]
[1753171151172,0.002,3674.6,3674.5,3.2714587]
[1753171151408,0.002,3674.6,3674.5,8.6191587]
[1753171151718,0.002,3674.6,3674.5,4.6161587]
[1753171151880,0.002,3674.6,3674.5,9.78092942]
[1753171152691,0.002,3674.6,3674.5,9.77992942]
[1753171155881,0.002,3674.6,3674.5,9.77892942]
[1753171156078,0.002,3674.6,3674.5,4.92192942]
[1753171156284,0.002,3674.6,3674.5,9.77892942]
[1753171156490,0.002,3674.6,3674.5,1.65047072]
[1753171156694,0.002,3674.6,3674.5,4.564]
[1753171157116,1.514745,3674.9,3674.5,4.564]
[1753171157308,0.7941,3674.9,3674.5,4.564]
[1753171157517,0.136,3675.0,3674.6,0.02721384]
[1753171157699,0.002,3675.2,3674.9,2.7211594]
[1753171157889,0.002,3675.2,3675.1,3.51571439]
[1753171158285,0.002,3675.2,3675.1,0.7947]
[1753171158624,0.002,3675.2,3674.8,0.136]
[1753171158782,0.002,3675.2,3674.9,4.428]
[1753171159601,0.002,3675.2,3674.9,7.14916237]
[1753171159798,0.002,3675.2,3674.9,4.428]
[1753171160201,0.4645,3675.2,3674.8,0.136]
[1753171160387,3.31956173,3675.1,3674.9,4.428]
[1753171160592,3.31956173,3675.1,3675.0,4.428]
[1753171161189,3.31954214,3675.1,3674.4,2.85750634]
[1753171161519,3.31954214,3675.1,3674.5,7.14845671]
[1753171162097,0.5985,3675.1,3674.5,7.14845671]
[1753171162298,0.136,3675.1,3674.5,7.14845671]
[1753171162497,2.85704041,3675.1,3674.5,7.14845671]
[1753171162926,0.136,3675.1,3674.5,7.14845671]
[1753171163240,0.002,3675.2,3674.7,2.72124687]
[1753171163430,0.002,3675.2,3674.8,4.427]
[1753171163605,0.002,3675.2,3674.9,2.74835386]
[1753171163811,0.002,3675.2,3674.9,2.72114224]
[1753171164216,0.002,3675.2,3675.0,0.02721088]
[1753171164423,0.002,3675.2,3675.1,7.14801439]
[1753171165339,0.002,3675.2,3675.1,8.82078208]
[1753171167428,0.002,3675.2,3675.1,10.12918208]
[1753171169207,1e-08,3675.2,3675.1,19.65718208]
[1753171169537,1e-08,3675.4,3675.3,4.04376632]
[1753171169749,1e-08,3675.4,3675.3,5.98282116]
[1753171169943,1e-08,3675.4,3675.3,7.14586632]
[1753171170145,1e-08,3675.4,3675.3,7.70986632]
[1753171170649,1e-08,3675.4,3675.3,7.83186632]
[1753171172146,1e-08,3675.4,3675.3,4.561]
[1753171172325,1e-08,3675.4,3675.3,0.136]
[1753171172510,2.7207923,3675.4,3675.1,6.528]
[1753171172714,2.7208768,3675.3,3675.1,6.528]
[1753171172937,2.7208768,3675.3,3675.2,4.424]
[1753171173299,2.7208768,3675.3,3674.9,0.136]
[1753171173300,2.72088993,3675.3,3674.9,0.136]
[1753171173448,2.72088993,3675.3,3675.0,4.424]
[1753171173449,0.4625,3675.2,3675.0,4.424]
[1753171174348,0.4625,3675.2,3675.1,4.424]
[1753171174954,2.72082209,3675.4,3675.1,4.424]
[1753171175438,1e-08,3675.4,3675.1,4.424]
[1753171175640,1e-08,3675.4,3675.2,0.0272094]
[1753171175826,1e-08,3675.4,3675.3,4.424]
[1753171178575,1e-08,3675.4,3675.3,7.14486632]
[1753171178733,1e-08,3675.4,3675.3,8.14505879]
[1753171178920,1e-08,3675.4,3675.3,8.61975879]
[1753171179122,1e-08,3675.4,3675.3,8.75575879]
[1753171180366,1e-08,3675.4,3675.3,8.28005879]
[1753171181659,1e-08,3675.4,3675.3,7.27986632]
[1753171183442,1e-08,3675.4,3675.3,4.559]
[1753171183861,1e-08,3675.4,3675.3,7.27986632]
[1753171186035,1e-08,3675.4,3675.3,4.422]
[1753171186959,1e-08,3675.4,3675.3,7.14286632]
[1753171190058,1e-08,3675.4,3675.3,8.66502293]
[1753171190247,1e-08,3675.4,3675.3,8.19132293]
[1753171192566,1e-08,3675.4,3675.3,8.66602293]
[1753171193343,1e-08,3675.4,3675.3,9.43682293]
[1753171194770,0.136,3676.1,3675.3,9.69089887]
[1753171194947,0.002,3676.2,3676.1,2.7202742]
[1753171195148,0.002,3676.2,3676.1,7.39335014]
[1753171195357,0.002,3676.2,3676.1,7.52935014]
[1753171195656,0.002,3676.2,3676.1,8.82363603]
[1753171196374,0.002,3676.2,3676.1,8.34893603]
[1753171196584,0.002,3676.2,3676.1,8.6364654]
[1753171196876,0.002,3676.2,3676.1,9.1111654]
[1753171197084,0.002,3676.2,3676.1,9.6611654]
[1753171198189,0.002,3676.2,3676.1,10.4326654]
[1753171198695,1e-08,3676.2,3676.1,8.8776654]
[1753171198876,1e-08,3676.2,3676.1,10.2956654]
[1753171199343,0.002,3676.5,3676.4,3.27005222]
[1753171199544,0.002,3676.5,3676.4,7.94231405]
[1753171199775,0.002,3676.5,3676.4,8.41701405]
[1753171200159,0.002,3676.5,3676.4,8.16275222]
[1753171200383,0.002,3676.5,3675.7,2.720506]
[1753171200384,0.002,3676.5,3675.3,0.001]
[1753171200385,0.7898,3676.5,3675.3,0.001]
[1753171200603,0.7878,3676.0,3675.7,0.55]
[1753171200753,0.7878,3676.0,3675.9,0.55]
[1753171200754,3.7878,3676.0,3675.9,0.55]
[1753171200948,8.38609626,3676.0,3675.9,0.8043233]
[1753171201262,15.7436,3676.0,3675.9,0.8043233]
[1753171201446,22.33684302,3676.0,3675.9,0.25135104]
[1753171201645,21.4639482,3676.0,3675.9,0.25135104]
[1753171201863,18.7436,3676.0,3675.9,0.25135104]
[1753171202453,15.7436,3676.0,3675.9,0.25135104]
[1753171203300,1.2436,3676.0,3675.9,0.25135104]
[1753171203455,0.002,3676.5,3676.0,0.55]
[1753171203650,2.72204338,3676.5,3676.0,0.55]
[1753171204080,2.72020135,3676.2,3676.0,0.55]
[1753171204252,2.72020135,3676.2,3676.0,1.0247]
[1753171204876,1.5,3676.4,3676.1,0.54417]
[1753171205078,2.72057023,3675.7,3674.5,0.001]
[1753171205282,18.00049229,3675.4,3675.3,1e-08]
[1753171205750,18.45629229,3675.4,3675.3,1e-08]
[1753171205996,23.06229229,3675.4,3675.3,1e-08]
[1753171206176,23.48079126,3675.4,3675.3,1e-08]
[1753171207261,26.48079126,3675.4,3675.3,1e-08]
[1753171207697,3.48198464,3674.6,3674.5,1e-08]
[1753171207898,3.48198464,3674.6,3673.8,0.001]
[1753171207899,3.48250315,3673.9,3673.8,0.001]
[1753171208198,2.72249598,3673.1,3673.0,0.001]
[1753171208407,2.72304852,3672.4,3672.1,0.4581]
[1753171208564,2.72285596,3672.7,3671.9,14.64291795]
[1753171208763,0.136,3672.9,3672.2,0.5941]
[1753171209000,2.72271836,3672.8,3671.6,0.4581]
[1753171209299,0.136,3672.4,3671.7,0.136]
[1753171209469,2.72334291,3672.0,3671.7,0.136]
[1753171209795,2.72337189,3672.0,3671.7,0.5941]
[1753171210095,0.136,3672.3,3671.7,0.73467]
[1753171210302,0.136,3672.3,3671.4,0.7576]
[1753171210303,2.72345362,3671.9,3671.4,0.7576]
[1753171210616,0.136,3672.1,3671.4,0.136]
[1753171210952,2.72361117,3671.6,3671.4,0.136]
[1753171211379,0.20173898,3671.8,3671.0,1.2753]
[1753171211578,2.72340678,3671.9,3671.2,2.72389754]
[1753171211809,0.7747,3672.6,3671.3,0.4853383]
[1753171212011,0.7747,3672.6,3671.5,2.72366734]
[1753171212190,2.72301771,3672.4,3671.6,0.34813664]
[1753171212394,2.72294798,3672.5,3671.6,0.34813664]
[1753171212594,2.72302395,3672.4,3671.6,0.80623664]
[1753171212909,0.98015372,3672.6,3671.6,0.48533608]
[1753171213111,14.5,3672.8,3671.7,5.4112]
[1753171213325,0.7983,3673.0,3671.8,0.48533459]
[1753171213516,0.19900395,3673.0,3672.9,2.72264423]
[1753171213692,0.19900395,3673.0,3672.9,3.43444207]
[1753171214012,3.1629701,3673.0,3672.9,0.25369784]
[1753171214228,3.1629701,3673.0,3671.1,3.58695941]
[1753171214229,3.0,3672.7,3669.6,0.7882]
[1753171214381,11.154,3673.0,3669.6,0.7882]
[1753171214382,0.1429,3671.6,3669.9,0.4581]
[1753171214579,14.5,3671.5,3669.9,0.4581]
[1753171214778,14.5,3671.5,3670.0,0.02724795]
[1753171214979,7.6317133,3671.3,3670.0,0.02724795]
[1753171215209,7.6317133,3671.3,3669.7,0.02725018]
[1753171215508,2.72446932,3670.5,3669.6,0.7882]
[1753171215711,2.72446932,3670.5,3669.0,2.72552528]
[1753171215712,0.8134,3670.7,3669.2,0.4581]
[1753171215927,2.72439654,3670.6,3669.8,2.72493381]
[1753171216106,2.72439654,3670.6,3669.6,2.72509265]
[1753171216311,0.8134,3670.7,3669.6,0.54775927]
[1753171216504,2.72460041,3670.3,3669.5,2.72513782]
[1753171216685,3.53774127,3670.7,3669.6,0.48535092]
[1753171217013,15.26,3671.2,3670.3,2.72452771]
[1753171217219,2.72400421,3671.1,3670.0,2.72477157]
[1753171217379,2.72400421,3671.1,3670.3,2.72454358]
[1753171217799,15.46841108,3671.2,3670.4,0.02724498]
[1753171217800,0.76,3671.2,3670.4,0.02724498]
[1753171218000,0.76,3671.2,3670.5,2.72441966]
[1753171218405,3.48396113,3671.2,3670.4,0.02724498]
[1753171218631,0.781,3671.7,3670.4,0.807]
[1753171218831,0.781,3672.2,3671.3,2.72379784]
[1753171219034,2.7233939,3671.9,3670.8,2.72413897]
[1753171219210,14.5,3671.8,3670.9,0.02724127]
[1753171219622,1.5,3671.9,3670.9,3.2094187]
[1753171219819,1.5,3671.9,3671.8,2.72345988]
[1753171220023,1.5,3671.9,3671.8,3.18155988]
[1753171220223,1.5,3671.9,3671.8,4.31672487]
[1753171220651,14.5,3672.8,3672.6,2.72284938]
[1753171220823,14.5,3672.8,3671.8,4.31672487]
[1753171221152,5.65899926,3673.3,3672.4,2.72294877]
[1753171221444,0.136,3672.9,3672.5,0.0272294]
[1753171221750,14.636,3672.9,3672.6,2.72285729]
[1753171221946,14.636,3672.9,3672.7,2.72277947]
[1753171222135,14.636,3672.9,3672.5,2.72294077]
[1753171222339,0.136,3672.9,3672.8,2.72271836]
[1753171222648,0.136,3673.1,3672.9,2.72260645]
[1753171223145,0.136,3673.1,3673.0,2.7225701]
[1753171223451,0.136,3673.6,3673.4,2.72226839]
[1753171223650,0.136,3673.6,3673.5,2.72219953]
[1753171223856,0.136,3673.6,3673.0,0.136]
[1753171224019,0.136,3673.6,3673.4,2.72221823]
[1753171224215,0.136,3673.6,3673.5,2.72219953]
[1753171224451,7.33438848,3674.6,3673.7,2.72203697]
[1753171224767,3.51246874,3674.9,3673.8,2.74919701]
[1753171224768,0.7913,3674.9,3673.8,2.74919701]
[1753171225075,0.136,3674.2,3674.1,2.72175498]
[1753171225279,0.136,3674.2,3674.0,2.7218125]
[1753171225577,0.136,3674.2,3674.1,2.72175498]
[1753171226057,0.136,3674.8,3674.4,2.72150843]
[1753171226240,0.136,3674.8,3674.1,0.4581]
[1753171226241,0.136,3674.8,3674.3,2.72159894]
[1753171226430,0.136,3674.8,3674.3,0.4581]
[1753171226632,0.136,3674.8,3674.5,2.72143103]
[1753171226849,0.136,3674.8,3674.3,3.17963437]
[1753171227920,0.136,3674.8,3674.3,0.4581]
[1753171228652,0.136,3674.8,3674.3,3.17969941]
[1753171228854,0.136,3674.8,3674.3,0.4581]
[1753171229027,0.136,3674.8,3674.4,4.605]
[1753171229841,2.85724405,3674.8,3674.4,4.605]
[1753171230048,14.5,3674.7,3674.4,4.605]
[1753171230630,17.22131708,3674.7,3674.4,4.605]
[1753171230832,14.5,3674.7,3674.4,4.605]
[1753171231237,0.136,3674.8,3674.5,0.4581]
[1753171231527,0.136,3674.8,3674.6,0.4581]
[1753171231953,0.136,3674.8,3674.2,2.85762745]
[1753171232140,2.85730415,3674.8,3674.3,4.583]
[1753171232552,2.7214587,3674.5,3674.4,4.583]
[1753171232760,0.779,3674.4,3673.9,4.581]
[1753171232959,3.63653276,3674.4,3673.9,4.581]
[1753171233257,2.72167839,3674.3,3673.9,4.581]
[1753171233436,0.915,3674.4,3673.9,4.581]
[1753171233640,2.72143518,3674.6,3673.9,3.1799931]
[1753171233964,2.72146741,3674.5,3674.0,0.136]
[1753171234259,2.85740562,3674.6,3674.0,4.715]
[1753171234460,2.72153412,3674.4,3674.0,4.715]
[1753171234676,2.72175498,3674.1,3674.0,0.136]
[1753171234963,2.7214587,3674.5,3673.7,0.136]
[1753171234964,0.136,3674.4,3673.7,0.136]
[1753171235165,0.136,3674.4,3671.9,2.72338375]
[1753171235166,0.136,3673.7,3673.1,0.136]
[1753171235462,2.72175498,3674.1,3673.0,4.575]
[1753171235463,2.72250896,3673.1,3673.0,4.575]
[1753171235662,2.72240038,3673.3,3673.0,4.575]
[1753171235966,2.72186335,3674.0,3673.0,4.575]
[1753171235967,2.72249598,3673.1,3673.0,4.575]
[1753171236139,2.72269111,3672.9,3672.7,0.136]
[1753171236459,2.72269111,3672.9,3672.2,3.47481482]
[1753171236460,0.136,3672.9,3672.8,4.575]
[1753171236675,2.85830249,3673.4,3672.8,5.1848]
[1753171236966,2.72264423,3672.9,3672.8,4.576]
[1753171237263,0.136,3673.0,3672.8,4.576]
[1753171237643,2.72277731,3672.8,3672.6,4.574]
[1753171237952,2.85858989,3673.0,3672.6,4.574]
[1753171238148,0.136,3673.0,3672.6,4.573]
[1753171238355,2.85863342,3673.0,3672.6,4.573]
[1753171238665,2.72271836,3672.8,3672.7,4.571]
[1753171239066,0.136,3673.0,3672.7,4.571]
[1753171239362,2.8585972,3673.0,3672.7,4.571]
[1753171239570,2.72271836,3672.8,3672.7,4.571]
[1753171239729,2.72264423,3672.9,3672.4,0.136]
[1753171239930,2.722851,3672.7,3672.5,4.569]
[1753171240129,2.72288178,3672.6,3672.4,0.136]
[1753171240368,2.72294077,3672.5,3672.4,0.136]
[1753171240552,2.72323429,3672.2,3671.7,0.8234]
[1753171240727,2.72326961,3672.1,3671.8,4.701]
[1753171240932,0.4381,3672.6,3671.4,0.001]
[1753171241164,2.72350449,3671.8,3671.5,4.564]
[1753171241368,0.136,3672.0,3671.4,0.137]
[1753171241581,2.72317953,3672.2,3671.4,0.001]
[1753171241582,2.72368241,3671.5,3671.4,0.001]
[1753171242132,3.16178241,3671.5,3671.4,0.001]
[1753171242955,2.72368241,3671.5,3671.4,0.001]
[1753171243269,3.16178241,3671.5,3671.4,0.001]
[1753171243434,3.16178241,3671.5,3671.4,1e-08]
[1753171243435,10.14951589,3671.5,3671.4,1e-08]
[1753171243638,4.14866365,3671.5,3671.4,1e-08]
[1753171244035,18.64866365,3671.5,3671.4,1e-08]
[1753171245843,18.21056365,3671.5,3671.4,1e-08]
[1753171246872,18.64866365,3671.5,3671.4,1e-08]
[1753171247175,23.20866365,3671.5,3671.4,1e-08]
[1753171247873,32.75951589,3671.5,3671.4,1e-08]
[1753171249188,32.20951589,3671.5,3671.4,1e-08]
[1753171250397,27.64951589,3671.5,3671.4,1e-08]
[1753171250603,21.64866365,3671.5,3671.4,1e-08]
[1753171250761,23.20166365,3671.5,3671.4,1e-08]
[1753171251086,26.20166365,3671.5,3671.4,1e-08]
[1753171251952,32.20251589,3671.5,3671.4,1e-08]
[1753171252344,21.21056365,3671.5,3671.4,1e-08]
[1753171252548,26.19966365,3671.5,3671.4,1e-08]
[1753171252857,23.19966365,3671.5,3671.4,1e-08]
[1753171253464,26.19966365,3671.5,3671.4,1e-08]
[1753171253687,26.20266365,3671.5,3671.4,1e-08]
[1753171254176,2.72432758,3670.7,3669.8,2.66294234]
[1753171254373,2.72432758,3670.7,3669.8,1.25800011]
[1753171254374,0.136,3670.6,3669.8,1.25800011]
[1753171254575,2.72499161,3669.8,3669.3,0.8071]
[1753171254752,2.72494704,3669.8,3669.3,0.9431]
[1753171254948,2.72472139,3670.1,3668.9,7.3391]
[1753171255182,0.136,3669.4,3668.9,0.001]
[1753171255885,2.72545821,3669.2,3668.9,0.001]
[1753171256050,7.27700598,3669.8,3668.9,0.001]
[1753171256051,0.136,3669.1,3668.9,0.001]
[1753171256984,2.72546661,3669.1,3668.9,0.001]
[1753171257194,14.5,3669.7,3668.9,0.001]
[1753171257486,0.136,3669.0,3668.9,0.001]
[1753171257690,0.136,3669.0,3668.9,0.32105495]
[1753171258868,0.136,3669.0,3668.9,3.20041258]
[1753171259071,0.136,3669.0,3668.9,0.4748]
[1753171259391,0.136,3669.0,3667.7,1e-08]
[1753171259392,3.54973001,3667.8,3667.7,1e-08]
[1753171259558,11.53648676,3667.8,3667.7,1e-08]
[1753171259754,21.46822898,3667.8,3667.7,1e-08]
[1753171259981,26.05122898,3667.8,3667.7,1e-08]
[1753171260494,26.48932898,3667.8,3667.7,1e-08]
[1753171260882,27.03932898,3667.8,3667.7,1e-08]
[1753171261257,18.90632898,3667.8,3667.7,1e-08]
[1753171261458,17.22643001,3667.8,3667.7,1e-08]
[1753171263758,2.7263384,3668.0,3667.7,1e-08]
[1753171263993,0.8026,3669.0,3667.7,0.47380001]
[1753171264173,14.5,3669.0,3667.8,0.0272643]
[1753171264494,0.02725778,3668.9,3667.9,0.4738]
[1753171264696,2.72591378,3668.5,3667.9,0.4738]
[1753171264859,0.02725778,3668.9,3667.7,1e-08]
[1753171264860,0.8026,3668.6,3667.7,1e-08]
[1753171265061,2.72643001,3667.8,3667.7,1e-08]
[1753171265466,2.72626018,3668.1,3667.7,0.47380001]
[1753171265661,0.02725778,3668.0,3667.7,0.47380001]
[1753171265857,2.72657868,3667.6,3666.9,7.3060929]
[1753171266071,0.07901687,3667.7,3666.9,1.04634546]
[1753171266072,2.8328158,3667.7,3666.9,1.04634546]
[1753171266380,0.10627465,3667.7,3666.9,1.04634546]
[1753171266580,0.07901687,3667.7,3666.9,1.04634546]
[1753171266786,0.07901687,3667.7,3666.8,4.00136988]
[1753171266787,0.10627465,3667.7,3666.8,5.8512]
[1753171266983,2.72692822,3667.2,3666.8,5.8512]
[1753171267195,2.72681624,3667.3,3666.8,5.8512]
[1753171267400,0.10627465,3667.7,3666.8,5.8512]
[1753171267401,0.07901687,3667.7,3666.9,0.46157099]
[1753171267713,2.72717355,3666.8,3666.7,3.92445455]
[1753171268201,3.90897355,3666.8,3666.7,3.92445455]
[1753171268403,18.40897355,3666.8,3666.7,3.92445455]
[1753171268566,2.72754548,3666.3,3666.2,0.001]
[1753171268768,2.72754548,3666.3,3666.2,1e-08]
[1753171268769,11.72839772,3666.3,3666.2,1e-08]
[1753171268963,12.95689772,3666.3,3666.2,1e-08]
[1753171269298,27.45689772,3666.3,3666.2,1e-08]
[1753171270196,28.00689772,3666.3,3666.2,1e-08]
[1753171270365,2.72769428,3666.1,3666.0,1e-08]
[1753171270568,5.75495206,3666.1,3666.0,1e-08]
[1753171270876,11.53325206,3666.1,3666.0,1e-08]
[1753171271102,11.50599428,3666.1,3666.0,1e-08]
[1753171274368,11.49299428,3666.1,3666.0,1e-08]
[1753171275208,6.93099428,3666.1,3666.0,1e-08]
[1753171275506,12.03999428,3666.1,3666.0,1e-08]
[1753171277170,2.72963013,3663.5,3663.3,0.25]
[1753171277404,2.72858741,3664.9,3663.5,0.4343]
[1753171277405,2.75616014,3664.5,3663.5,0.4343]
[1753171277602,4.58525778,3664.5,3663.5,0.4343]
[1753171277905,2.72903419,3664.3,3663.5,0.4343]
[1753171278211,0.02725778,3664.2,3663.5,0.4343]
[1753171278422,2.72881078,3664.6,3663.5,0.4343]
[1753171278586,4.556,3664.7,3663.5,0.4343]
[1753171278587,2.729388,3663.9,3663.5,0.4343]
[1753171278935,0.02725778,3664.4,3663.6,0.4343]
[1753171279202,3.54574999,3665.0,3663.6,0.4343]
[1753171279203,2.72945842,3663.8,3663.6,0.4343]
[1753171279402,2.93803339,3663.9,3663.7,0.4343]
[1753171279576,2.72935632,3663.9,3663.7,0.4343]
[1753171279912,6.00085224,3665.7,3663.9,0.7678]
[1753171280212,0.4301,3665.9,3663.9,0.7678]
[1753171280213,0.84445778,3665.6,3664.0,5.02059257]
[1753171280369,2.72828963,3665.3,3663.9,0.7678]
[1753171280573,2.72925764,3664.0,3663.9,0.7678]
[1753171280814,2.72925764,3664.0,3662.5,2.73034266]
[1753171280815,0.20847311,3664.0,3663.4,0.77788]
[1753171281127,0.02725778,3663.9,3663.4,0.01008]
[1753171281269,6.00085224,3665.0,3663.5,0.4343]
[1753171281270,0.02725778,3664.5,3663.5,0.4343]
[1753171281469,2.72906833,3664.3,3663.7,0.7678]
[1753171281772,2.72940662,3663.8,3663.7,0.7678]
[1753171282114,2.72963013,3663.5,3663.4,0.01008]
[1753171282704,0.02725778,3663.6,3663.4,0.01008]
[1753171282893,4.57,3664.5,3663.4,0.01008]
[1753171282894,2.72953132,3663.7,3663.5,0.4343]
[1753171283091,2.72949172,3663.7,3663.4,0.53621566]
[1753171283294,0.02725778,3664.3,3663.5,0.4343]
[1753171283498,2.72954273,3663.7,3663.5,0.4343]
[1753171283699,2.75668983,3663.8,3663.4,0.01008]
[1753171283898,2.72948112,3663.7,3663.6,0.4343]
[1753171284101,0.02725778,3663.8,3663.4,0.01008]
[1753171284306,0.7922,3663.7,3663.4,0.01008]
[1753171284488,2.72963013,3663.5,3663.4,0.01008]
[1753171284901,0.02725778,3663.6,3663.4,0.01008]